bitfinex/quotes_ETHUSD_20241101
["timestamp","ask_amount","ask_price","bid_price","bid_amount"]
[1730419201063,5.78837572,2519.1,2519.0,5.3e-06]
[1730419202824,5.80837572,2519.1,2519.0,5.3e-06]
[1730419204334,7.16830549,2519.1,2519.0,5.3e-06]
[1730419206061,7.71830549,2519.1,2519.0,5.3e-06]
[1730419212132,7.16830549,2519.1,2519.0,5.3e-06]
[1730419215769,7.91283733,2519.1,2519.0,5.3e-06]
[1730419215965,13.18865242,2519.1,2519.0,5.3e-06]
[1730419216151,16.74139053,2519.1,2519.0,5.3e-06]
[1730419216354,18.45382408,2519.1,2519.0,5.3e-06]
[1730419216558,18.55517019,2519.1,2519.0,5.3e-06]
[1730419219882,0.01,2518.4,2518.1,0.42]
[1730419220038,3.0,2518.1,2517.8,0.41242116]
[1730419220243,1.35992977,2517.9,2517.8,0.41242116]
[1730419220549,1.35992977,2517.9,2517.7,0.42]
[1730419224570,2.9578401,2518.2,2517.7,0.42]
[1730419224773,3.0,2518.1,2517.7,0.42]
[1730419231149,3.97172,2517.8,2517.7,0.42]
[1730419231584,6.97127,2518.1,2517.7,0.42]
[1730419231585,3.97135,2518.1,2517.7,0.64134803]
[1730419231770,3.97148,2518.0,2517.9,0.42]
[1730419231972,3.97135,2518.1,2517.9,0.42]
[1730419232689,7.94271,2518.1,2517.9,0.42]
[1730419232853,7.94271,2518.1,2518.0,0.42]
[1730419233049,3.97109,2518.2,2518.0,0.42]
[1730419233249,7.94206,2518.3,2518.0,0.42]
[1730419233494,3.97116,2518.2,2518.0,0.42]
[1730419235486,3.97077,2518.5,2518.0,3.97134]
[1730419235663,3.97077,2518.5,2518.1,0.82656498]
[1730419235866,3.97078,2518.4,2518.2,0.42]
[1730419236390,3.97093,2518.3,2518.2,0.42]
[1730419236797,3.97149,2518.0,2517.8,0.42]
[1730419237092,3.97156,2517.9,2517.8,0.42]
[1730419238262,3.97187,2517.7,2517.6,2.21340908]
[1730419238851,3.97187,2517.7,2517.6,0.42]
[1730419239055,3.97187,2517.7,2517.4,0.83254518]
[1730419239056,3.97219,2517.5,2517.4,0.83254518]
[1730419239255,3.97251,2517.3,2517.2,0.42]
[1730419241315,3.97238,2517.4,2517.2,0.42]
[1730419241684,3.97251,2517.3,2517.2,0.859298]
[1730419241913,3.97251,2517.3,2517.2,0.42]
[1730419242430,3.97046,2518.6,2517.2,0.42]
[1730419242431,3.97117,2518.2,2517.5,0.55]
[1730419242593,0.787,2518.5,2517.9,3.97143]
[1730419242594,3.97068,2518.5,2517.9,3.97143]
[1730419242785,3.97045,2518.6,2518.0,0.817143]
[1730419243012,3.9706,2518.6,2518.1,0.42]
[1730419243333,3.97109,2518.2,2518.1,0.42]
[1730419243805,0.005,2522.7,2518.1,0.42]
[1730419243806,6.88840962,2519.0,2518.1,0.42]
[1730419244022,3.9708,2518.4,2518.1,0.42]
[1730419244323,3.9708,2518.4,2518.1,0.859142]
[1730419244324,3.97085,2518.4,2518.1,0.859142]
[1730419244527,3.97039,2518.7,2518.2,4.39106]
[1730419246926,3.97015,2518.8,2518.4,3.9707]
[1730419247099,3.97037,2518.7,2518.3,0.42]
[1730419247300,3.97037,2518.7,2518.3,4.8739292]
[1730419247812,3.97037,2518.7,2518.3,0.9030092]
[1730419248121,3.97037,2518.7,2517.7,3.01]
[1730419248122,3.97132,2518.1,2517.6,3.97195]
[1730419248326,7.94264,2518.1,2517.6,4.39195]
[1730419248513,3.97132,2518.1,2517.7,0.42]
[1730419248716,3.97132,2518.1,2517.7,1.256414]
[1730419249598,3.97132,2518.1,2517.7,0.42]
[1730419249599,3.9714,2518.0,2517.7,0.42]
[1730419249805,3.97132,2518.1,2517.7,0.42]
[1730419249983,3.97143,2518.0,2517.7,0.42]
[1730419250321,0.01,2518.8,2517.4,0.29715337]
[1730419250322,0.7886,2518.7,2518.0,0.42]
[1730419250540,3.97068,2518.5,2518.0,3.97137]
[1730419250736,3.95246604,2518.6,2518.0,3.97137]
[1730419250737,3.95246604,2518.6,2518.2,0.42]
[1730419251040,3.8004,2519.0,2518.2,0.42]
[1730419251320,3.97015,2518.8,2518.3,4.39082]
[1730419251499,3.97031,2518.7,2518.3,4.39082]
[1730419251699,3.97015,2518.8,2518.3,0.42]
[1730419251924,3.97037,2518.7,2518.4,0.439108]
[1730419252097,3.97015,2518.8,2518.4,0.439108]
[1730419252312,3.97033,2518.7,2518.4,0.439108]
[1730419253500,3.97047,2518.6,2518.4,0.439108]
[1730419253702,3.97047,2518.6,2518.3,0.42]
[1730419253927,3.97033,2518.7,2518.3,0.42]
[1730419253928,3.97062,2518.5,2518.3,0.42]
[1730419254921,3.97033,2518.7,2518.3,0.42]
[1730419255234,3.97054,2518.6,2518.3,0.42]
[1730419255891,7.94053,2518.8,2518.3,0.42]
[1730419256093,3.97024,2518.8,2518.3,0.42]
[1730419256389,3.9703,2518.7,2518.3,0.42]
[1730419257129,3.9703,2518.7,2518.3,4.39092]
[1730419257425,3.9703,2518.7,2518.3,3.97092]
[1730419257637,3.9703,2518.7,2518.4,0.42]
[1730419259138,3.97014,2518.8,2518.5,0.42]
[1730419259324,3.97006,2518.9,2518.5,0.42]
[1730419259527,7.94018,2518.9,2518.5,0.42]
[1730419259841,3.97054,2518.6,2518.2,0.42]
[1730419260003,3.97032,2518.7,2518.2,0.42]
[1730419260004,3.97062,2518.5,2518.2,0.42]
[1730419260445,5.90273447,2518.9,2518.2,0.42]
[1730419260446,3.97093,2518.3,2518.2,0.42]
[1730419261015,3.97078,2518.4,2518.2,0.42]
[1730419261211,3.97093,2518.3,2518.2,0.42]
[1730419263439,3.97078,2518.4,2518.2,0.42]
[1730419263777,3.9707,2518.5,2518.2,0.42]
[1730419264350,3.97055,2518.6,2518.2,1.19204672]
[1730419264514,3.97069,2518.5,2518.2,0.42]
[1730419265481,0.8039,2518.9,2518.5,0.42]
[1730419265747,3.96999,2518.9,2518.6,0.42]
[1730419266581,3.96985,2519.0,2518.6,0.42]
[1730419266873,3.97008,2518.9,2518.6,0.42]
[1730419267845,3.97015,2518.8,2518.6,0.42]
[1730419268168,3.97008,2518.9,2518.6,0.42]
[1730419268368,3.97021,2518.8,2518.6,0.42]
[1730419268578,3.9703,2518.7,2518.6,0.42]
[1730419268732,3.97021,2518.8,2518.6,0.42]
[1730419268733,3.97004,2518.9,2518.6,0.42]
[1730419269782,3.97014,2518.8,2518.6,0.42]
[1730419269934,3.97004,2518.9,2518.6,0.42]
[1730419270354,3.97016,2518.8,2518.6,0.42]
[1730419270575,3.96998,2518.9,2518.6,0.859074]
[1730419271075,3.97015,2518.8,2518.6,0.859074]
[1730419271944,3.9703,2518.7,2518.6,0.42]
[1730419272140,3.96999,2518.9,2518.6,0.42]
[1730419272340,3.97015,2518.8,2518.6,0.42]
[1730419273140,3.96998,2518.9,2518.6,0.42]
[1730419273343,11.3868647,2519.1,2519.0,3.96982]
[1730419273543,11.3868647,2519.1,2519.0,4.93982]
[1730419275608,11.3868647,2519.1,2519.0,4.94982]
[1730419276218,11.3868647,2519.1,2519.0,7.95982]
[1730419279321,11.3868647,2519.1,2519.0,10.9176601]
[1730419279522,11.3868647,2519.1,2519.0,12.40642111]
[1730419280422,10.55877975,2519.1,2519.0,12.40642111]
[1730419285047,9.08667658,2519.1,2519.0,12.40642111]
[1730419287644,9.08667658,2519.1,2519.0,6.42858101]
[1730419290557,9.08667658,2519.1,2519.0,4.51982]
[1730419291987,9.08667658,2519.1,2518.9,0.55]
[1730419292289,0.8154,2519.0,2518.6,0.41287177]
[1730419292576,0.8154,2519.0,2518.7,3.97029]
[1730419294393,9.00726874,2519.1,2518.7,5.22557918]
[1730419295247,12.97694874,2519.1,2518.7,5.22557918]
[1730419295643,12.97694874,2519.1,2518.7,4.39021]
[1730419297376,9.00726874,2519.1,2518.8,4.52012]
[1730419297893,9.00726874,2519.1,2518.8,4.52013]
[1730419298906,9.00726874,2519.1,2518.9,3.96995]
[1730419299066,9.00726874,2519.1,2519.0,0.55]
[1730419299267,9.00726874,2519.1,2519.0,1.001991]
[1730419300891,9.00726874,2519.1,2518.7,7.3480501]
[1730419300892,9.00726874,2519.1,2518.7,4.39021]
[1730419301093,9.00726874,2519.1,2518.8,0.55]
[1730419301094,13.78406874,2519.1,2518.8,0.55]
[1730419308908,3.96983,2519.0,2518.8,0.55]
[1730419309204,13.78404874,2519.1,2518.8,0.55]
[1730419309811,9.81436874,2519.1,2518.9,3.96996]
[1730419310014,9.00726874,2519.1,2518.9,3.96996]
[1730419311355,9.00726874,2519.1,2518.9,4.86026675]
[1730419311939,9.00726874,2519.1,2518.9,4.86020675]
[1730419312866,9.00726874,2519.1,2519.0,4.93982]
[1730419315738,9.00726874,2519.1,2519.0,7.96847687]
[1730419315938,9.00726874,2519.1,2519.0,11.20511975]
[1730419316250,9.00726874,2519.1,2519.0,13.62477253]
[1730419316450,9.00726874,2519.1,2519.0,14.65612609]
[1730419316980,9.00726874,2519.1,2519.0,15.49942706]
[1730419317193,9.00726874,2519.1,2519.0,15.97537348]
[1730419317469,9.00726874,2519.1,2519.0,15.49942706]
[1730419318374,9.00726874,2519.1,2519.0,13.78058828]
[1730419318880,9.00726874,2519.1,2519.0,13.78063279]
[1730419319466,9.00726874,2519.1,2519.0,13.48312863]
[1730419319644,9.00726874,2519.1,2519.0,13.78063263]
[1730419319975,9.00726874,2519.1,2519.0,14.81212297]
[1730419320475,9.00726874,2519.1,2519.0,14.51461897]
[1730419320685,9.00726874,2519.1,2519.0,14.17078885]
[1730419320840,9.00726874,2519.1,2519.0,13.48312863]
[1730419321377,4.12102984,2519.1,2519.0,13.48312863]
[1730419321875,4.12102984,2519.1,2519.0,12.94732571]
[1730419322081,4.12102984,2519.1,2519.0,9.98948561]
[1730419322244,4.12102984,2519.1,2519.0,9.69198756]
[1730419322754,4.12102984,2519.1,2519.0,10.46535954]
[1730419323181,0.70162931,2519.1,2519.0,10.46535954]
[1730419323378,0.8165,2520.1,2519.9,3.96832]
[1730419323673,0.8165,2520.1,2520.0,0.396832]
[1730419323975,0.8165,2520.1,2520.0,4.365082]
[1730419324281,0.8165,2520.1,2520.0,0.396832]
[1730419324444,0.8165,2520.1,2519.9,0.55]
[1730419325774,0.8165,2520.1,2519.8,3.96854]
[1730419325775,4.7846,2520.1,2519.6,10.8954201]
[1730419325989,4.7846,2520.1,2519.7,3.96872]
[1730419326358,0.8165,2520.1,2519.7,3.96872]
[1730419326583,0.8165,2520.1,2519.8,3.96854]
[1730419326903,0.8165,2520.1,2519.9,3.96839]
[1730419327069,3.96769,2520.4,2520.0,3.96825]
[1730419327269,3.96754,2520.5,2520.1,3.96808]
[1730419328097,4.73782,2520.6,2520.1,3.96808]
[1730419328405,3.96747,2520.5,2520.1,3.96808]
[1730419329104,4.73791,2520.6,2520.1,3.96808]
[1730419329274,3.96754,2520.5,2520.0,3.96814]
[1730419329699,3.96774,2520.4,2519.9,5.182073]
[1730419329913,0.7892,2520.3,2519.9,3.96838]
[1730419330070,4.757,2520.3,2519.9,3.96838]
[1730419330276,3.96802,2520.2,2519.8,3.96843]
[1730419330508,0.7892,2520.1,2519.8,3.96856]
[1730419330804,0.7892,2520.1,2519.7,7.51869]
[1730419331106,0.7892,2520.1,2519.8,7.93702]
[1730419331475,0.7892,2520.1,2519.8,7.93695]
[1730419331672,0.7892,2520.1,2519.8,3.96846]
[1730419331872,0.7892,2520.1,2519.8,4.04782081]
[1730419332708,0.7892,2520.1,2519.9,3.96836]
[1730419333707,0.7892,2520.1,2519.8,4.04791081]
[1730419336396,0.7892,2520.1,2519.7,7.51869]
[1730419336397,4.7573,2520.1,2519.7,7.51869]
[1730419336602,0.7892,2520.1,2519.7,7.51869]
[1730419336797,0.7892,2520.1,2519.8,3.96855]
[1730419337103,0.7892,2520.1,2519.8,4.04786093]
[1730419337843,0.7892,2520.1,2519.9,3.9684]
[1730419338614,0.7892,2520.1,2519.8,3.9685]
[1730419338915,0.7892,2520.1,2519.8,4.04784092]
[1730419339152,0.7892,2520.1,2519.8,8.01631092]
[1730419339340,0.7892,2520.1,2519.9,3.96838]
[1730419341824,0.7892,2520.1,2519.7,4.51871]
[1730419342453,0.7892,2520.1,2519.8,3.96848]
[1730419342674,0.7892,2520.1,2519.6,3.96885]
[1730419342818,3.96832,2520.0,2519.7,0.0793667]
[1730419343851,1.264913,2520.1,2519.7,0.0793667]
[1730419344066,3.96828,2520.0,2519.6,4.04824642]
[1730419348239,0.7892,2520.1,2519.5,4.80192315]
[1730419348240,0.7741,2519.6,2519.5,0.41296315]
[1730419348490,4.74298,2519.6,2519.5,0.41296315]
[1730419348634,0.7741,2519.0,2518.8,3.97013]
[1730419348976,0.7741,2519.0,2518.7,7.94041]
[1730419349160,0.7741,2519.2,2518.9,3.96998]
[1730419349626,0.7741,2519.2,2518.9,3.96988]
[1730419350359,0.7741,2519.2,2518.8,4.38320795]
[1730419350744,4.74361,2519.2,2518.8,4.38320795]
[1730419351128,0.7741,2519.2,2518.8,4.38320795]
[1730419352133,3.96937,2519.3,2518.8,5.26055175]
[1730419352479,3.96937,2519.3,2518.9,0.07939041]
[1730419352480,7.93888,2519.3,2518.9,0.07939041]
[1730419352764,3.96952,2519.2,2518.9,0.07939041]
[1730419352980,3.96952,2519.2,2518.8,4.38320795]
[1730419353535,3.96952,2519.2,2518.6,0.55]
[1730419353975,3.96952,2519.2,2518.8,0.41313557]
[1730419354178,4.843129,2519.2,2518.8,0.41313557]
[1730419354379,4.843129,2519.2,2518.8,4.38320557]
[1730419355086,0.8276,2519.1,2518.8,0.41313557]
[1730419356781,0.8276,2519.1,2518.5,4.87161567]
[1730419356989,0.8276,2519.1,2518.5,5.16814849]
[1730419357284,4.79728,2519.1,2518.6,3.97038]
[1730419357578,0.8276,2519.1,2518.5,1.91377557]
[1730419357754,0.8276,2519.1,2518.5,2.21035812]
[1730419357958,0.39688,2519.6,2518.4,3.97063]
[1730419357959,4.76089,2518.9,2518.4,3.97063]
[1730419358156,4.76089,2518.9,2518.3,4.26750313]
[1730419358157,3.97021,2518.8,2518.3,4.26750313]
[1730419358352,3.97021,2518.8,2518.2,8.30304881]
[1730419358558,0.7908,2518.6,2518.2,8.30304881]
[1730419359153,4.76131,2518.6,2518.2,4.33206881]
[1730419359340,4.76131,2518.6,2518.0,4.59208018]
[1730419359341,0.7908,2518.6,2518.0,3.97136]
[1730419359547,0.7908,2518.6,2518.3,3.97084]
[1730419359788,0.7908,2518.6,2518.2,3.97094]
[1730419359958,0.7908,2518.6,2518.2,4.26750561]
[1730419360289,0.7908,2518.6,2518.2,3.97094]
[1730419360700,0.7908,2518.6,2518.3,0.07940868]
[1730419360898,0.7908,2518.6,2518.4,3.97075]
[1730419361067,0.7716,2518.9,2518.5,4.04995114]
[1730419361397,0.7716,2519.2,2518.8,3.97002]
[1730419361605,0.7716,2519.4,2518.9,0.07939041]
[1730419361803,0.7716,2519.7,2519.2,3.96941]
[1730419362093,0.7716,2519.7,2519.3,4.04865663]
[1730419362589,0.7716,2519.7,2519.4,3.96917]
[1730419362768,0.7716,2519.7,2519.5,0.07937032]
[1730419363407,0.8314,2519.9,2519.5,4.04834032]
[1730419363771,0.8314,2519.9,2519.5,8.01731032]
[1730419363991,0.8314,2519.9,2519.5,3.96897]
[1730419364527,0.8314,2519.9,2519.5,7.93791]
[1730419364828,0.8314,2519.9,2519.5,3.96894]
[1730419365402,0.8314,2520.1,2519.6,0.07937024]
[1730419365729,0.8314,2520.1,2519.3,4.34501763]
[1730419365730,3.96851,2519.9,2519.3,4.34501763]
[1730419365914,3.97833,2520.0,2519.3,3.96924]
[1730419365915,4.79998,2519.8,2519.3,3.96924]
[1730419366891,4.79998,2519.8,2519.3,3.96928]
[1730419368302,0.8314,2519.8,2519.4,3.96915]
[1730419368498,0.8314,2519.8,2519.5,0.07937194]
[1730419368707,0.8314,2519.8,2519.5,4.04838194]
[1730419369632,0.7553,2520.1,2519.7,3.96863]
[1730419369794,0.7553,2520.1,2519.8,3.96847]
[1730419369996,0.7553,2520.1,2519.8,7.93695]
[1730419370219,0.7553,2520.1,2519.8,3.96847]
[1730419373323,0.7553,2520.1,2519.6,4.77051319]
[1730419373726,0.7553,2520.1,2519.8,3.96855]
[1730419374020,0.7553,2520.1,2519.8,4.04658799]
[1730419374222,4.72058,2520.3,2519.8,4.04651799]
[1730419374639,4.72058,2520.3,2519.8,8.01499799]
[1730419374840,4.72058,2520.3,2519.8,3.96848]
[1730419375043,4.72058,2520.3,2519.8,4.96943927]
[1730419376063,4.72058,2520.3,2519.9,3.9684]
[1730419376354,4.72058,2520.3,2520.0,0.07935683]
[1730419376747,4.72058,2520.3,2519.9,0.07935683]
[1730419376954,0.7528,2520.3,2520.0,3.96819]
[1730419377244,0.7528,2520.3,2520.0,4.45716925]
[1730419377821,8.75406,2520.5,2520.0,4.45716925]
[1730419378452,3.96763,2520.4,2520.0,4.45716925]
[1730419378722,0.8189,2520.5,2520.0,4.45716925]
[1730419378723,0.8089,2520.5,2520.1,3.96801]
[1730419378934,0.8089,2520.5,2520.2,0.84251792]
[1730419379783,4.77638,2520.5,2520.2,0.84251792]
[1730419380066,3.97732,2520.6,2520.2,0.84251792]
[1730419380268,4.02667359,2520.8,2520.3,3.96767]
[1730419380427,0.05954359,2520.8,2520.4,4.04689099]
[1730419381150,0.05954359,2520.8,2520.5,0.55]
[1730419381449,11.42599,2521.5,2520.8,3.96699]
[1730419381450,0.7534,2521.5,2520.8,3.96699]
[1730419381657,0.7534,2521.5,2521.0,3.96659]
[1730419381658,8.68541,2521.5,2521.0,3.96659]
[1730419381883,4.71939,2521.5,2521.1,0.07932017]
[1730419382025,4.71937,2521.5,2521.1,4.04583017]
[1730419382229,0.7534,2521.5,2521.1,0.07932017]
[1730419382430,0.7534,2521.5,2521.2,3.96636]
[1730419382994,0.7534,2521.5,2521.1,0.47975992]
[1730419383175,0.7534,2521.5,2520.7,3.55]
[1730419383326,0.7534,2521.5,2520.7,3.0]
[1730419383327,3.96645,2521.2,2520.7,3.0]
[1730419383673,3.96645,2521.2,2520.7,6.9671]
[1730419384161,0.7808,2521.0,2520.6,3.96719]
[1730419384387,4.74756,2521.0,2520.6,3.0]
[1730419384557,0.7808,2521.0,2520.7,0.0793328]
[1730419384985,0.7808,2521.0,2520.6,3.96722]
[1730419385352,0.7808,2521.0,2520.7,0.07933218]
[1730419386285,4.74749,2521.0,2520.7,0.07933218]
[1730419387081,0.7808,2521.0,2520.6,3.96722]
[1730419387269,4.77598,2521.2,2520.7,4.44318432]
[1730419387471,4.77598,2521.2,2520.7,4.04646232]
[1730419387895,8.74242,2521.2,2520.7,4.04646232]
[1730419388077,4.77598,2521.2,2520.7,4.04646232]
[1730419388275,3.96653,2521.1,2520.7,4.04646232]
[1730419388475,4.77598,2521.2,2520.8,3.96692]
[1730419388698,4.77598,2521.2,2520.8,0.793405]
[1730419388900,3.96652,2521.1,2520.8,0.793405]
[1730419389410,4.77598,2521.2,2520.8,0.793405]
[1730419391015,4.77598,2521.2,2520.8,4.760375]
[1730419391196,0.8096,2521.2,2520.9,3.96676]
[1730419391508,0.7891,2521.5,2521.0,0.8727135]
[1730419391710,4.75508,2521.5,2521.0,3.96667]
[1730419392016,3.96607,2521.4,2521.0,3.96667]
[1730419392220,4.74508,2521.5,2521.1,4.0455967]
[1730419392382,3.96605,2521.4,2521.1,0.0791367]
[1730419392709,0.7791,2521.5,2521.2,3.96632]
[1730419392912,4.745,2521.5,2521.1,5.06352468]
[1730419393115,3.96605,2521.4,2520.9,3.9667]
[1730419393283,7.93219,2521.4,2520.9,3.9667]
[1730419393477,0.7791,2521.5,2521.2,3.96628]
[1730419396044,0.7854,2522.1,2521.3,3.55]
[1730419396338,0.7854,2522.1,2521.6,3.0]
[1730419396339,4.75045,2522.1,2521.6,3.0]
[1730419396496,0.7854,2521.6,2521.3,7.51617]
[1730419396830,0.7854,2521.6,2521.3,7.51609]
[1730419397017,4.75124,2521.6,2521.3,4.148248]
[1730419397527,0.7854,2521.6,2521.3,4.148248]
[1730419398130,0.7854,2521.6,2521.4,0.0793122]
[1730419398131,4.75114,2521.6,2521.4,0.0793122]
[1730419398333,0.7854,2521.6,2521.4,0.0793122]
[1730419398557,0.7854,2521.6,2521.3,4.148248]
[1730419398847,4.75113,2521.6,2521.3,4.148248]
[1730419399410,0.7854,2521.6,2521.3,4.148248]
[1730419399645,0.7854,2521.6,2521.4,1.2080798]
[1730419400627,4.75115,2521.6,2521.4,1.2080798]
[1730419400850,0.7854,2521.6,2521.4,1.2080798]
[1730419401147,4.75113,2521.6,2521.4,1.2080798]
[1730419401713,0.7854,2521.6,2521.4,1.2080798]
[1730419402650,4.75115,2521.6,2521.4,1.2080798]
[1730419403156,4.75113,2521.6,2521.4,1.2080798]
[1730419403320,4.75113,2521.6,2521.2,3.96627]
[1730419403532,0.7854,2521.6,2521.3,3.96619]
[1730419403735,0.7854,2521.6,2521.4,0.03320674]
[1730419404222,0.7854,2521.6,2521.4,0.079312]
[1730419404822,0.7854,2521.6,2521.3,3.96611]
[1730419405155,0.7854,2521.6,2521.3,0.793257]
[1730419405512,4.7512,2521.6,2521.3,0.793257]
[1730419405908,0.7854,2521.6,2521.3,0.793257]
[1730419406113,0.7854,2521.6,2520.9,3.96681]
[1730419406427,3.97558,2521.7,2521.0,0.07931423]
[1730419406428,0.8016,2521.2,2521.0,0.07931423]
[1730419406763,3.97593,2521.5,2521.0,0.07931423]
[1730419407046,0.8016,2521.4,2521.0,4.04593423]
[1730419407211,0.8016,2521.4,2521.1,4.37100342]
[1730419407747,0.8016,2521.4,2521.1,4.41239476]
[1730419408046,3.96591,2521.5,2521.1,4.41239476]
[1730419408255,3.9658,2521.6,2521.2,3.96629]
[1730419408445,3.9658,2521.6,2521.3,0.04140408]
[1730419408623,4.78189,2521.7,2521.3,0.04140408]
[1730419408624,4.77189,2521.7,2521.3,0.04140408]
[1730419408819,8.73759,2521.7,2521.3,0.04140408]
[1730419409159,3.96521,2522.0,2521.5,3.9658]
[1730419409434,8.2747,2522.1,2521.6,3.96567]
[1730419409435,4.7798,2522.1,2521.6,3.96567]
[1730419409705,4.7698,2522.1,2521.7,4.04486089]
[1730419410097,0.8047,2522.1,2521.7,4.04486089]
[1730419410298,3.96495,2522.1,2521.7,4.04486089]
[1730419410472,3.96482,2522.2,2521.7,8.01036089]
[1730419410670,3.96482,2522.2,2521.7,7.93106]
[1730419411112,3.96482,2522.2,2521.7,7.931]
[1730419411792,3.96482,2522.2,2521.5,2.9578401]
[1730419411983,3.96524,2522.0,2521.6,3.0]
[1730419412195,3.96532,2521.9,2521.6,3.0]
[1730419412508,3.96545,2521.8,2521.4,6.96603]
[1730419412803,3.96532,2521.9,2521.4,6.96603]
[1730419413585,3.96532,2521.9,2521.5,3.96581]
[1730419413805,3.96532,2521.9,2521.5,5.14278097]
[1730419415007,4.73853,2521.9,2521.5,1.17697097]
[1730419415611,0.7732,2521.9,2521.5,5.14286097]
[1730419416104,4.7385,2521.9,2521.5,5.14276097]
[1730419416310,0.7832,2521.9,2521.3,0.83786975]
[1730419416515,0.7832,2521.9,2521.1,4.37098342]
[1730419416516,3.96568,2521.7,2521.2,3.96626]
[1730419416846,3.96577,2521.6,2521.2,3.96626]
[1730419417210,3.96577,2521.6,2521.1,4.37098342]
[1730419417444,4.7485,2521.9,2521.5,3.96586]
[1730419417576,4.7385,2521.9,2521.6,0.07930635]
[1730419417912,4.7485,2521.9,2521.5,3.96586]
[1730419418112,4.7485,2521.9,2521.4,3.96598]
[1730419418582,4.7385,2521.9,2521.4,3.96598]
[1730419418782,4.7485,2521.9,2521.4,3.96598]
[1730419419008,4.7485,2521.9,2521.4,5.17219184]
[1730419419680,3.96542,2521.8,2521.4,5.17219184]
[1730419420304,4.73848,2521.9,2521.5,0.0793075]
[1730419420514,3.96542,2521.8,2521.5,0.0793075]
[1730419420728,3.96542,2521.8,2521.4,5.17219184]
[1730419421032,4.73847,2521.9,2521.5,4.04519751]
[1730419422430,4.73847,2521.9,2521.5,4.96695845]
[1730419423604,3.96545,2521.8,2521.5,1.00106845]
[1730419424144,4.75452,2522.1,2521.7,3.96557]
[1730419425406,8.71961,2522.1,2521.6,4.5157]
[1730419425736,4.75452,2522.1,2521.6,5.57664728]
[1730419426430,3.9648,2522.2,2521.7,4.04485817]
[1730419426635,3.9648,2522.2,2521.7,4.34155801]
[1730419426837,3.96497,2522.1,2521.7,4.04485817]
[1730419427138,3.96497,2522.1,2521.8,0.29669945]
[1730419427438,3.96497,2522.1,2521.7,4.04485817]
[1730419427740,3.96497,2522.1,2521.8,0.61305246]
[1730419427919,3.96497,2522.1,2521.8,0.9097314]
[1730419428157,3.96497,2522.1,2521.8,0.90972731]
[1730419428342,3.96485,2522.2,2521.9,0.07929822]
[1730419429332,3.96485,2522.2,2521.9,0.97128777]
[1730419432069,3.96485,2522.2,2521.6,4.5157]
[1730419432070,3.9651,2522.0,2521.6,4.5157]
[1730419432267,3.9651,2522.0,2521.6,4.812334]
[1730419432568,3.9649,2522.2,2521.7,4.04473879]
[1730419432569,3.96479,2522.2,2521.7,4.04473879]
[1730419432869,3.96501,2522.1,2521.7,4.34137279]
[1730419433054,3.96501,2522.1,2521.7,1.26163851]
[1730419433263,3.96501,2522.1,2521.7,5.14789128]
[1730419433774,3.96501,2522.1,2521.7,5.22718852]
[1730419433973,3.96501,2522.1,2521.7,5.14789128]
[1730419434145,3.96479,2522.2,2521.7,4.85125728]
[1730419434340,3.96479,2522.2,2521.7,5.14795448]
[1730419434544,3.96479,2522.2,2521.8,0.37599289]
[1730419434774,3.96479,2522.2,2521.7,4.85125728]
[1730419435071,7.9297,2522.2,2521.8,0.93668573]
[1730419435475,3.96501,2522.1,2521.8,0.93668573]
[1730419435687,3.96479,2522.2,2521.9,0.07929571]
[1730419435983,3.96479,2522.2,2521.8,0.93668573]
[1730419436188,3.96479,2522.2,2521.9,0.07929572]
[1730419436545,3.96479,2522.2,2521.8,0.93668573]
[1730419436742,3.96479,2522.2,2521.9,0.07929573]
[1730419436944,3.96479,2522.2,2521.8,0.93668573]
[1730419437582,3.96479,2522.2,2521.9,0.07929574]
[1730419437975,3.96479,2522.2,2521.8,0.93668573]
[1730419438174,3.96479,2522.2,2521.8,4.90209573]
[1730419438363,3.96479,2522.2,2521.8,0.93668573]
[1730419438566,3.96497,2522.1,2521.8,0.93668573]
[1730419439485,3.96497,2522.1,2521.6,0.55]
[1730419439486,3.96506,2522.1,2521.6,4.51571]
[1730419439655,3.9651,2522.0,2521.7,0.29694704]
[1730419439857,0.7642,2521.9,2521.4,4.44110458]
[1730419440055,4.7296,2521.9,2521.5,0.29696565]
[1730419440268,4.7296,2521.9,2521.6,0.29696565]
[1730419440559,4.7296,2521.9,2521.4,4.44106458]
[1730419440560,4.7296,2521.9,2521.4,4.44115541]
[1730419440761,4.7296,2521.9,2521.5,0.29698951]
[1730419441058,4.7296,2521.9,2521.6,0.29698531]
[1730419441258,4.7296,2521.9,2521.5,3.96586]
[1730419441487,4.7296,2521.9,2521.6,0.29701784]
[1730419441684,3.96544,2521.8,2521.4,0.47522009]
[1730419441855,3.96568,2521.7,2521.5,0.29702272]
[1730419442066,3.96568,2521.7,2521.3,0.47522009]
[1730419442067,3.96568,2521.7,2521.2,4.8556206]
[1730419442266,3.96568,2521.7,2521.3,5.13180552]
[1730419442601,3.96566,2521.7,2521.4,0.29703973]
[1730419442761,3.96566,2521.7,2521.3,0.86859579]
[1730419443099,3.96566,2521.7,2521.4,0.2970323]
[1730419443285,3.96566,2521.7,2521.3,0.86859579]
[1730419443492,3.96566,2521.7,2521.4,0.2970329]
[1730419443664,3.96566,2521.7,2521.3,0.86859579]
[1730419443864,3.96566,2521.7,2521.4,0.29703292]
[1730419444065,3.96566,2521.7,2521.5,0.29703292]
[1730419444407,3.96545,2521.8,2521.3,5.30998747]
[1730419444565,3.96545,2521.8,2521.4,1.56606374]
[1730419444760,3.96545,2521.8,2521.5,0.29703294]
[1730419444981,3.96545,2521.8,2521.4,5.31432086]
[1730419445182,7.93099,2521.8,2521.5,0.29702794]
[1730419445377,3.96545,2521.8,2521.3,4.85552551]
[1730419445572,3.96545,2521.8,2521.4,0.29703755]